{"text_format":"1","workbook":"xlsx","n_sheets":6,"sheets":["Index","General Info","RecoFormat","Sharecapital","Taxonomy","TextBlock"],"not_rendered":{"charts":0,"images":1,"macros":1,"external_links":0,"defined_names":4,"comments":0,"pivot_tables":0},"unopened":[],"bounds":{"document_bytes":16777216,"sheet_cells":100000,"rows_first":2000,"rows_last":500,"rows_between":2000,"halvings":0,"cell_chars":16384,"cell_head_chars":4096},"cells_cut":0,"cells_raw":0,"read":"whole","date_system":"1900"}

{"sheet":"Index","index":0,"n_rows":51,"n_cols":10,"rows_kept":51,"cut":false,"hidden":false,"merged":[[21,3,21,9],[5,4,5,8],[6,5,6,8],[7,5,7,8],[8,5,8,8],[10,5,10,8],[13,3,13,9],[14,3,14,9],[15,3,15,9],[18,3,18,9],[19,3,19,9],[20,3,20,9],[9,5,9,8],[36,3,36,9],[22,3,22,9],[23,3,23,9],[27,3,27,9],[28,4,28,8],[29,4,29,8],[30,4,30,8],[33,3,33,9],[35,3,35,9],[34,3,34,9],[24,3,24,9],[50,3,50,9],[37,3,37,9],[38,3,38,9],[39,3,39,9],[40,3,40,9],[43,3,43,9],[44,3,44,9],[45,3,45,9],[46,3,46,9],[47,3,47,9],[48,3,48,9],[49,3,49,9]]}
[]
[]
[]
[]
[]
[null,null,null,null,"                                      XBRL Excel Utility"]
[null,null,null,null,"1.","Overview"]
[null,null,null,null,"2.","Before you begin"]
[null,null,null,null,"3.","Index"]
[null,null,null,null,"4","Steps for Filing - Reconciliation Of Share Capital Audit"]
[null,null,null,null,"5","Fill up the data in excel utility"]
[]
[]
[null,null,null,"1. Overview"]
[null,null,null,"The excel utility can be used for creating the XBRL/XML file for efiling of Reconciliation of Share Capital Audit."]
[null,null,null,"XBRL filling consists of two processes. Firstly generation of XBRL/XML file and then upload the generated XBRL/XML file to BSE Listing Center Website (www.listing.bseindia.com)."]
[]
[]
[null,null,null," 2.  Before you begin"]
[null,null,null,"1. The version of Microsoft Excel in your system should be Microsoft Office Excel 2007 and above."]
[null,null,null,"2. The system should have a file compression software to unzip excel utility file."]
[null,null,null,"3. Make sure that you have downloaded the latest Excel Utility from BSE Website to your local system."]
[null,null,null,"4. Make sure that you have downloaded the Chrome Browser to view report generated from Excel utility"]
[null,null,null,"5. Please enable the Macros (if disabled) as per instructions given in manual, so that all the functionalities of  Excel Utility works fine. Please first go through Enable Macro - Manual attached with zip file."]
[null,null,null,"6. Kindly use this file in local system instead of OneDrive/shared drive.\nBecause it may gives an error \"Run-time error '52' : Bad file name or number\" While clicking on textblock button if files saved on OneDrive/shared drive."]
[]
[]
[null,null,null,"3. Index "]
[null,null,null,1,"Details of general information about company",null,null,null,null,"General Info"]
[null,null,null,2,"RecoFormat",null,null,null,null,"RecoFormat"]
[null,null,null,3,"Sharecapital",null,null,null,null,"Sharecapital"]
[]
[]
[null,null,null,"4. Steps for Filing - Reconciliation Of Share Capital Audit"]
[null,null,null,"I.  Fill up the data: Navigate to each field of every section in the sheet to provide applicable data in correct format.  (Formats will get reflected while filling data.)  \n   - Use paste special command to paste data from other sheet.\n"]
[null,null,null,"II. Validating Sheets:  Click on the ''Validate \"  button to ensure that the sheet has been properly filled and also data has been furnished in proper format. If there are some errors on the sheet, excel utility will prompt you about the same."]
[null,null,null,"III. Validate All Sheets:  Click on the ''Home\"  button. And then click on \"Validate All Sheet\" button to ensure that all sheets has been properly filled and validated successfully. If there are some errors on the sheet, excel utility will prompt you about the same and stop validation at the same time. After correction, once again follow the same procedure to validate all sheets."]
[null,null,null,"Excel Utility will not allow you to generate XBRL/XML until you rectify all errors. "]
[null,null,null,"IV. Generate XML :   Excel Utility will not allow you to generate XBRL/XML unless successful validation of all sheet is completed. Now click on 'Generate XML'' to generate XBRL/XML file. \n    - Save the XBRL/XML file in your desired folder in local system. "]
[null,null,null,"V. Generate Report :   Excel Utility will allow you to generate Report. Now click on 'Generate Report'' to generate html report.   \n     - Save the HTML Report file in your desired folder in local system.     \n     - To view HTML Report open \"Chrome Web Browser\" . \n     - To print report in PDF Format, Click on print button and save as PDF. "]
[null,null,null,"VI. Upload XML file to BSE Listing Center: For uploading the XBRL/XML file generated through  Utility, login to BSE Listing Center and upload generated xml file. On Upload screen provide the required information and browse to select XML file and submit the XML.\n"]
[]
[]
[null,null,null,"5. Fill up the data in excel utility"]
[null,null,null,"1. Cells with red fonts indicate mandatory fields. "]
[null,null,null,"2. If mandatory field is left empty, then Utility will not allow you to proceed further for generating XML."]
[null,null,null,"3. You are not allowed to enter data in the Grey Cells."]
[null,null,null,"4. If fields are not applicable to your company then leave it blank. Do not insert Zero unless it is a mandatory field."]
[null,null,null,"5. Data provided must be in correct format, otherwise Utility will not allow you to proceed further for generating XML ."]
[null,null,null,"6. Select data from \"Dropdown list\" wherever applicable. "]
[null,null,null,"7. Adding Notes:  Click on \"Add Notes\" button to add notes "]

{"sheet":"General Info","index":1,"n_rows":42,"n_cols":20,"rows_kept":42,"cut":false,"hidden":false,"merged":[[8,6,8,8],[7,5,7,8],[9,6,9,8],[21,5,22,5],[15,5,15,8],[10,6,10,8],[11,6,11,8],[14,6,14,8],[16,6,16,8],[17,6,17,8],[18,6,18,8],[19,6,19,8],[20,6,20,8],[12,6,12,8],[13,6,13,8],[40,6,40,8],[27,5,27,8],[31,6,31,8],[32,6,32,8],[41,6,41,8],[34,5,35,5],[33,6,33,8],[37,6,37,8],[38,6,38,8],[39,6,39,8],[30,6,30,8],[24,6,24,8],[25,6,25,8],[26,6,26,8],[28,6,28,8],[29,6,29,8]]}
[null,null,null,null,null,null,null,null,null,null,null,null,null,null,null,null,null,null,"Yes","No"]
[]
[]
[]
[]
[]
[]
[null,null,null,null,null,"RECONCILIATION OF SHARE CAPITAL AUDIT"]
[null,null,null,null,null,"Scrip code*","538786"]
[null,null,null,null,null,"NSE Symbol*","NOTLISTED"]
[null,null,null,null,null,"MSEI Symbol*","NOTLISTED"]
[null,null,null,null,null,"ISIN*","INE473L01018"]
[null,null,null,null,null,"Whether company has CIN","Yes"]
[null,null,null,null,null,"CIN Number","L31100GJ1994PLC023561"]
[null,null,null,null,null,"Name of the company*","CITIZEN INFOLINE LIMITED"]
[null,null,null,null,null,"Registered office address"]
[null,null,null,null,null,"Registered office address*","411, SAKAR-II , ELLISBRIDGE, ASHRAM ROAD"]
[null,null,null,null,null,"Registered office state*","GUJARAT"]
[null,null,null,null,null,"Registered office city*","AHMEDABAD"]
[null,null,null,null,null,"Registered office district*","AHMEDABAD"]
[null,null,null,null,null,"Registered office pin code*","380006"]
[null,null,null,null,null,"Registered office contact number*","ISD Code*","STD Code*","Number*"]
[null,null,null,null,null,null,"91","079",26585555,null,null,null,null,null,null,null,null,"Registered Office ISD Code","Registered Office STD Code","Registered Office Contact Number"]
[null,null,null,null,null,"Registered office fax",null,null,null,null,null,null,null,null,null,null,null,"Registered Office ISD Code Of Fax Number","Registered Office STD Code Of Fax Number","Registered Office Fax Number"]
[null,null,null,null,null,"Registered office country*","INDIA"]
[null,null,null,null,null,"Registered office website*","www.citizeninfoline.com"]
[null,null,null,null,null,"Registered office email*","acc@infoline.com"]
[null,null,null,null,null,"Correspondence address"]
[null,null,null,null,null,"Same as above","Yes"]
[null,null,null,null,null,"Correspondence address*","411, SAKAR-II , ELLISBRIDGE, ASHRAM ROAD"]
[null,null,null,null,null,"Correspondence state","GUJARAT"]
[null,null,null,null,null,"Correspondence city","AHMEDABAD"]
[null,null,null,null,null,"Correspondence district","AHMEDABAD"]
[null,null,null,null,null,"Correspondence pin code","380006"]
[null,null,null,null,null,"Correspondence contact number","ISD Code","STD Code","Number"]
[null,null,null,null,null,null,"91","079",26585555,null,null,null,null,null,null,null,null,"Correspondence ISD Code","Correspondence STD Code","Correspondence Contact Number"]
[null,null,null,null,null,"Correspondence fax",null,"",null,null,null,null,null,null,null,null,null,"Correspondence ISD Code Of Fax Number","Correspondence STD Code Of Fax Number","Correspondence Fax Number"]
[null,null,null,null,null,"Correspondence country","INDIA"]
[null,null,null,null,null,"Correspondence email","acc@infoline.com"]
[]
[null,null,null,null,null,"Reporting quarter*","31-03-2026"]
[null,null,null,null,null,"Face value*",10]

{"sheet":"RecoFormat","index":2,"n_rows":102,"n_cols":24,"rows_kept":102,"cut":false,"hidden":false,"merged":[[24,8,24,9],[24,10,24,11],[24,12,24,13],[58,6,58,7],[49,8,49,9],[62,6,62,7],[60,5,60,7],[55,5,56,5],[54,6,54,7],[24,6,24,7],[66,6,66,7],[58,8,58,9],[7,5,10,5],[46,5,46,7],[47,6,47,7],[52,6,52,7],[49,6,49,7],[51,6,51,7],[48,6,48,7],[50,6,50,7],[30,5,30,7],[34,6,34,7],[40,5,40,8],[61,6,61,7],[57,6,57,7],[59,6,59,7],[73,6,73,7],[74,6,74,7],[78,6,78,7],[92,5,93,5],[84,6,84,7],[86,6,86,7],[87,6,87,7],[80,6,80,7],[81,6,81,7],[82,6,82,7],[88,6,88,7],[89,6,89,7],[90,6,90,7],[91,6,91,7],[83,5,83,7],[85,6,85,7],[65,6,65,7],[101,6,101,7],[100,6,100,7],[95,6,95,7],[63,6,63,7],[99,6,99,7],[67,6,67,7],[97,6,97,7],[98,6,98,7],[96,6,96,7],[68,5,68,7],[75,5,76,5],[69,6,69,7],[70,6,70,7],[71,6,71,7],[72,6,72,7]]}
[null,null,null,null,null,null,null,null,null,null,null,null,null,null,null,null,null,"National Stock Exchange of India Ltd(NSE)","Metropolitan Stock Exchange of India Ltd(MSEI)","Calcutta Stock Exchange of India Ltd(CSE)","BSE Ltd"]
[null,null,null,null,null,null,null,null,null,null,null,null,null,null,null,null,"IN HOUSE","Yes","No","NA"]
[null,null,null,null,null,null,null,null,null,null,null,null,null,null,null,null,null,"Chartered accountant","Company secretary","Cost Accountant"]
[null,null,null,null,null,null,null,null,null,null,null,null,null,null,null,null,null,"ACS","FCS",null,null,null,"Yes","NIL"]
[null,null,null,null,null,null,null,null,null,null,null,null,null,null,null,null,null,"Associate","Fellow"]
[null,null,null,null,null,null,null,"Listed Capital (As no. of shares)"]
[null,null,null,null,null,"Stock Exchange Details :","Name of Stock Exchange","Listed Capital","% Of total issued capital"]
[null,null,null,null,null,"Name of stock exchanges where the company's securities are listed","BSE Ltd",5397300,{"$f":"+IF(H8=\"\",\"\",IFERROR(IF(COUNT(H8,$G$19),(ROUND((H8/$G$19)*100,2)),\"\"),\"\"))","v":100},null,null,null,null,null,null,null,null,"Name of stock exchanges where the company's securities are listed"]
[null,null,null,null,null,null,"National Stock Exchange of India Ltd(NSE)",0,{"$f":"+IF(H9=\"\",\"\",IFERROR(IF(COUNT(H9,$G$19),(ROUND((H9/$G$19)*100,2)),\"\"),\"\"))","v":0},null,null,null,null,null,null,null,null,"Name of stock exchanges where the company's securities are listed"]
[null,null,null,null,null,null,"Metropolitan Stock Exchange of India Ltd(MSEI)",0,{"$f":"+IF(H10=\"\",\"\",IFERROR(IF(COUNT(H10,$G$19),(ROUND((H10/$G$19)*100,2)),\"\"),\"\"))","v":0},null,null,null,null,null,null,null,null,"Name of stock exchanges where the company's securities are listed"]
[null,null,null,null,null,null,"Calcutta Stock Exchange of India Ltd(CSE)",0,{"$f":"+IF(H11=\"\",\"\",IFERROR(IF(COUNT(H11,$G$19),(ROUND((H11/$G$19)*100,2)),\"\"),\"\"))","v":0},null,null,null,null,null,null,null,null,"Name of stock exchanges where the company's securities are listed"]
[null,null,null,null,null,"Remarks",null,null,null,null,null,null,null,null,null,null,null,"Disclosure of note on names of the stock exchanges where the company's securities are listed"]
[]
[]
[]
[]
[null,null,null,null,null,"Capital Details :"]
[null,null,null,null,null,null,"Number of shares","% Of total issued capital"]
[null,null,null,null,null,"Issued capital*",5397300]
[null,null,null,null,null,"Held in dematerialised form in CDSL*",390396,{"$f":"IFERROR(IF(COUNT(G20),ROUND(G20/$G$19 * 100,2),\"\"),\"\")","v":7.23},null,null,null,null,null,null,null,null,null,"PercentageOfSharesHeldInDematerialisedFormInCDSLToTotalNumberOfSharesIssued"]
[null,null,null,null,null,"Held in dematerialised form in NSDL*",3531604,{"$f":"IFERROR(IF(COUNT(G21),ROUND(G21/$G$19 * 100,2),\"\"),\"\")","v":65.430000000000007},null,null,null,null,null,null,null,null,null,"PercentageOfSharesHeldInDematerialisedFormInNSDLToTotalNumberOfSharesIssued"]
[null,null,null,null,null,"Physical*",1475300,{"$f":"IFERROR(IF(COUNT(G22),ROUND(G22/$G$19 * 100,2),\"\"),\"\")","v":27.33},null,null,null,null,null,null,null,null,null,"PercentageOfSharesHeldInPhysicalFormatToTotalNumberOfSharesIssued"]
[null,null,null,null,null,"Total no.of shares*",{"$f":"+IF(COUNT(G20:G22),SUM(G20:G22),\"\")","v":5397300},{"$f":"IFERROR(IF(COUNT(G23),ROUND(G23/$G$19 * 100,0),\"\"),\"\")","v":100},null,null,null,null,null,null,null,null,null,"Percentage as a total number of shares"]
[null,null,null,null,null,"Total no. of Security holders as on end of the quarter*",6451]
[null,null,null,null,null,null,"BSE Ltd",null,"National Stock Exchange of India Ltd(NSE)",null,"Metropolitan Stock Exchange of India Ltd(MSEI)",null,"Calcutta Stock Exchange of India Ltd(CSE)"]
[null,null,null,null,null,null,"Number of shares","Reasons for difference","Number of shares","Reasons for difference","Number of shares","Reasons for difference","Number of shares","Reasons for difference"]
[null,null,null,null,null,"Reasons for difference if any, Between issued capital and listed capital*",{"$f":"IF(OR(NOT(ISNUMBER($G$19)),NOT(ISNUMBER($H$8))),\"\",IF(AND(ISNUMBER($H$8),MOD($H$8,1)=0,$H$8>0),$G$19-$H$8,\"\"))","v":0},null,{"$f":"IF(OR(NOT(ISNUMBER($G$19)),NOT(ISNUMBER($H$9))),\"\",IF(AND(ISNUMBER($H$9),MOD($H$9,1)=0,$H$9>0),$G$19-$H$9,\"\"))","v":""},null,{"$f":"IF(OR(NOT(ISNUMBER($G$19)),NOT(ISNUMBER($H$10))),\"\",IF(AND(ISNUMBER($H$10),MOD($H$10,1)=0,$H$10>0),$G$19-$H$10,\"\"))","v":""},null,{"$f":"IF(OR(NOT(ISNUMBER($G$19)),NOT(ISNUMBER($H$11))),\"\",IF(AND(ISNUMBER($H$11),MOD($H$11,1)=0,$H$11>0),$G$19-$H$11,\"\"))","v":""},null,null,null,null,"Difference between number of shares issued and listed"]
[null,null,null,null,null,"Reasons for difference if any, Between issued capital and total number of shares*",{"$f":"IF(OR(NOT(ISNUMBER($G$19)),NOT(ISNUMBER($G$23)),NOT(ISNUMBER($H$8))),\"\",IF(AND(ISNUMBER($H$8),MOD($H$8,1)=0,$H$8>0),$G$19-$G$23,\"\"))","v":0},null,{"$f":"IF(OR(NOT(ISNUMBER($G$19)),NOT(ISNUMBER($G$23)),NOT(ISNUMBER($H$9))),\"\",IF(AND(ISNUMBER($H$9),MOD($H$9,1)=0,$H$9>0),$G$19-$G$23,\"\"))","v":""},null,{"$f":"IF(OR(NOT(ISNUMBER($G$19)),NOT(ISNUMBER($G$23)),NOT(ISNUMBER($H$10))),\"\",IF(AND(ISNUMBER($H$10),MOD($H$10,1)=0,$H$10>0),$G$19-$G$23,\"\"))","v":""},null,{"$f":"IF(OR(NOT(ISNUMBER($G$19)),NOT(ISNUMBER($G$23)),NOT(ISNUMBER($H$11))),\"\",IF(AND(ISNUMBER($H$11),MOD($H$11,1)=0,$H$11>0),$G$19-$G$23,\"\"))","v":""},null,null,null,null,"Difference between number of shares issued and total number of shares"]
[null,null,null,null,null,"Reasons for difference if any, Between listed capital and total number of shares*",{"$f":"IF(OR(NOT(ISNUMBER($H$8)),NOT(ISNUMBER($G$23))),\"\",IF(AND(ISNUMBER($H$8),MOD($H$8,1)=0,$H$8>0),$H$8-$G$23,\"\"))","v":0},null,{"$f":"IF(OR(NOT(ISNUMBER($H$9)),NOT(ISNUMBER($G$23))),\"\",IF(AND(ISNUMBER($H$9),MOD($H$9,1)=0,$H$9>0),$H$9-$G$23,\"\"))","v":""},null,{"$f":"IF(OR(NOT(ISNUMBER($H$10)),NOT(ISNUMBER($G$23))),\"\",IF(AND(ISNUMBER($H$10),MOD($H$10,1)=0,$H$10>0),$H$10-$G$23,\"\"))","v":""},null,{"$f":"IF(OR(NOT(ISNUMBER($H$11)),NOT(ISNUMBER($G$23))),\"\",IF(AND(ISNUMBER($H$11),MOD($H$11,1)=0,$H$11>0),$H$11-$G$23,\"\"))","v":""},null,null,null,null,"Difference between number of shares listed and total number of shares"]
[]
[null,null,null,null,null,"Certifying the details of changes in share capital during the quarter under consideration as per Table below :"]
[null,null,null,null,null,"Whether changes during the quarter*","Yes","Click here"]
[]
[null,null,null,null,null,"Register of members is updated*","Yes","<<  Select from drop down"]
[null,null,null,null,null,"If not, Updated upto which date",""]
[null,null,null,null,null,"Reference of previous quarter with regards to excess dematerialised shares,If any.","NA"]
[null,null,null,null,null,"Has the company resolved the matter (excess dematerialised shares mentioned above) in the current quarter ?*","NA","<<  Select from drop down"]
[null,null,null,null,null,"If not, Reason why ?",""]
[null,null,null,null,null,"Other Details Auditor"]
[]
[null,null,null,null,null,"Mention the total no. of requests, If any, confirmed after 21 days and the total no. of requests pending beyond 21 days with the reasons for delay"]
[null,null,null,null,null,"  Total no.of demat requests","No.of requests*","No.of shares*","Reasons for delay"]
[null,null,null,null,null,"Confirmed after 21 days*","0","0","NA"]
[null,null,null,null,null,"Pending for more than 21 days*","0","0","NA"]
[null,null,null,null,null,"Remarks",null,null,null,null,null,null,null,null,null,null,null,"Disclosure of note on total number of requests confirmed after 21 days and the total number of requests pending beyond 21 days"]
[]
[null,null,null,null,null,"Compliance Officer Details"]
[null,null,null,null,null,"Whether Compliance officer appointed","Yes",null,null,null,null,null,null,null,null,null,null,"Whether Compliance officer appointed"]
[null,null,null,null,null,"Whether Qualified Company Secretary is Compliance Officer *","Yes",null,null,null,null,null,null,null,null,null,null,"Whether Qualified Company Secretary is Compliance Officer"]
[null,null,null,null,null,"Name of the compliance officer*","REENA SHAH",null,null,null,null,null,null,null,null,null,null,"Name of the compliance officer"]
[null,null,null,null,null,"PAN of the compliance officer*","DUTPS4727N",null,null,null,null,null,null,null,null,null,null,"PAN of the compliance officer*"]
[null,null,null,null,null,"Date of Appointment*","19-11-2018",null,null,null,null,null,null,null,null,null,null,"Date of appointment of compliance officer*"]
[null,null,null,null,null,"Designation*","COMPANY SECRETARY",null,null,null,null,null,null,null,null,null,null,"Designation of the compliance officer"]
[null,null,null,null,null,"Membership Nos*","ACS","36620",null,null,null,null,null,null,null,null,null,"Membership Number Of Compliance Officer*","Membership Number Of Compliance Officer*"]
[null,null,null,null,null,"Mobile no.*",9825144488,null,null,null,null,null,null,null,null,null,null,"Contact Number Of The Compliance Officer"]
[null,null,null,null,null,"Fax no.",null,null,null,null,null,null,null,null,null,null,null,"STD Code Of The Compliance Officer","Contact Number Of The Compliance Officer"]
[null,null,null,null,null,null,"","",null,null,null,null,null,null,null,null,null,"STD Code Of Fax Number Of The Compliance Officer","Fax Number Of The Compliance Officer"]
[null,null,null,null,null,"E-mail id*","acc@infoline.com",null,null,null,null,null,null,null,null,null,null,"Name of the compliance officer E-mail id","E-mail id of the compliance officer"]
[null,null,null,null,null,"Whether any change in Compliance Officer during the previous 2 quarters*","No",null,"For calculating 2 previous quarters companies are advised to consider Current quarter and previous 2 quarters",null,null,null,null,null,null,null,null,"Whether any change in Compliance Officer during the quarter "]
[null,null,null,null,null,"Whether the previous Compliance Officer was Qualified Company Secretary *","",null,null,null,null,null,null,null,null,null,null,"Whether the previous Compliance Officer was Qualified Company Secretary "]
[null,null,null,null,null,"Details of Previous Compliance Officer"]
[null,null,null,null,null,"Details of Previous Compliance Officer","No",null,null,null,null,null,null,null,null,null,null,"Details of Previous Compliance Officer"]
[null,null,null,null,null,"Previous Compliance Officer Name","",null,null,null,null,null,null,null,null,null,null,"Previous Compliance Officer Name"]
[null,null,null,null,null,"PAN of the previous compliance officer*","",null,null,null,null,null,null,null,null,null,null,"PAN of the previous compliance officer*"]
[null,null,null,null,null,"Membership Nos","","",null,null,null,null,null,null,null,null,null,"Membership Nos","Membership Nos"]
[null,null,null,null,null,"Reason for entering the same membership Nos.","",null,null,null,null,null,null,null,null,null,null,"Reason for entering the same membership Nos.","Reason for entering the same membership Nos."]
[null,null,null,null,null,"Date of Appointment","",null,null,null,null,null,null,null,null,null,null,"Date of appointment of previous compliance officer"]
[null,null,null,null,null,"Date of Cessation","",null,null,null,null,null,null,null,null,null,null,"Date of cessation of previous compliance officer"]
[null,null,null,null,null,"Certifying Auditor Details"]
[null,null,null,null,null,"CA/CS/CMA*","Chartered accountant",null,null,null,null,null,null,null,null,null,null,"CA/CS","CA/CS/CMA*"]
[null,null,null,null,null,"Name of certifying auditor*","KRUTESH PATEL",null,null,null,null,null,null,null,null,null,null,"Name of certifying auditor","Name of certifying auditor*"]
[null,null,null,null,null,"Date of issue of report*","28-04-2026",null,null,null,null,null,null,null,null,null,null,"Name of certifying auditor Date of issue of report","Date of signing of certifying auditor"]
[null,null,null,null,null,"Address*","B-310 Gopal Palace, Opp. Ocean Park, Above Hotel Maan Residency, Nehrunagar BRTS",null,null,null,null,null,null,null,null,null,null,"Name of certifying auditor Address","Address of certifying auditor"]
[null,null,null,null,null,"City*","AHMEDABAD",null,null,null,null,null,null,null,null,null,null,"Name of certifying auditor City","City of certifying auditor"]
[null,null,null,null,null,"Pincode*","380015",null,null,null,null,null,null,null,null,null,null,"Name of certifying auditor Pincode","Pin code of certifying auditor"]
[null,null,null,null,null,"Contact no.*","STD Code","Number"]
[null,null,null,null,null,null,"079","48004971",null,null,null,null,null,null,null,null,null,"STD Code Of Certifying Auditor","Contact Number Of Certifying Auditor"]
[null,null,null,null,null,"Fax no.",null,null,null,null,null,null,null,null,null,null,null,"STD Code Of Fax Number Of Certifying Auditor","Fax Number Of Certifying Auditor"]
[null,null,null,null,null,"Email*","team@krutesh.ca",null,null,null,null,null,null,null,null,null,null,"Name of certifying auditor Email","Email of certifying auditor"]
[null,null,null,null,null,"Membership no.*","Fellow","140047",null,null,null,null,null,null,null,null,null,"Name of certifying auditor Membership no.","Name of certifying auditor Membership no.","Membership number of certifying auditor"]
[null,null,null,null,null,"Firms registration number of audit firm","100865W",null,null,null,null,null,null,null,null,null,null,"Firms registration number of audit firm"]
[null,null,null,null,null,"Name of the firm*","KRUTESH PATEL & ASSOCIATES",null,null,null,null,null,null,null,null,null,null,"Name of the firm ",null,"Name of the firm"]
[null,null,null,null,null,"COP number*","140047",null,null,null,null,null,null,null,null,null,null,"COP Number Of Certifying Auditor",null,"COP number of certifying auditor"]
[null,null,null,null,null,"Registrar and Share Transfer Agent Details"]
[null,null,null,null,null,"Appointment of common agency for share registry work*","Yes",null,null,null,null,null,null,null,null,null,null,"Appointment of common agency for share registry work"]
[null,null,null,null,null,"Whether Registered with SEBI*","Yes",null,null,null,null,null,null,null,null,null,null,"Whether Registered with SEBI"]
[null,null,null,null,null,"Name of RTA","MUFG Intime India Private Limited",null,null,null,null,null,null,null,null,null,null,"Name of RTA"]
[null,null,null,null,null,"SEBI registration no.","INR000004058",null,null,null,null,null,null,null,null,null,null,"Name of RTA SEBI registration no.","SEBI registration number"]
[null,null,null,null,null,"Address","05TH FLOOR, 506 TO 508, AMARNATH BUSINESS CENTRE -1(ABC-1),BESIDE GALA BUSINESS CENTRE, NR.ST XAVIERS",null,null,null,null,null,null,null,null,null,null,"Name of RTA Address","Address of RTA"]
[null,null,null,null,null,"State","GUJARAT",null,null,null,null,null,null,null,null,null,null,"Name of RTA State","State of RTA"]
[null,null,null,null,null,"City","AHMEDABAD",null,null,null,null,null,null,null,null,null,null,"Name of RTA City","City of RTA"]
[null,null,null,null,null,"Pincode","380009",null,null,null,null,null,null,null,null,null,null,"Name of RTAPincode","Pincode of RTA"]
[null,null,null,null,null,"Contact no.","STD Code","Number"]
[null,null,null,null,null,null,"079"," 26465179",null,null,null,null,null,null,null,null,null,"STD Code Of RTA","Contact Number Of RTA"]
[null,null,null,null,null,"Fax number of RTA","","",null,null,null,null,null,null,null,null,null,"STD Code Of Fax Number Of RTA","Fax Number Of RTA"]
[null,null,null,null,null,"E-mail id*","accounts@linkintime.co.in",null,null,null,null,null,null,null,null,null,null,"Name of RTA E-mail id*","Email id of RTA"]
[null,null,null,null,null,"Website Address*","www.mpms.mufg.com",null,null,null,null,null,null,null,null,null,null,"Website Address*","Website adress of RTA"]
[null,null,null,null,null,"Whether any change in Registrar and Share Transfer Agents *","No",null,null,null,null,null,null,null,null,null,null,"Whether any change in Registrar and Share Transfer Agents"]
[null,null,null,null,null,"Previous Registrar and Share Transfer Agents Name","",null,null,null,null,null,null,null,null,null,null,"Previous Registrar and Share Transfer Agents Name ","Name of previous registrar and share transfer agents"]
[null,null,null,null,null,"Date of Cessation ","",null,null,null,null,null,null,null,null,null,null,"Date of cessation previous registrar and share transfer agents"]
[null,null,null,null,null,"Remarks relating to Register and Share Transfer Agent",null,null,null,null,null,null,null,null,null,null,null,"Remarks relating to Register and Share Transfer Agent"]
[null,null,null,null,null,"Any other detail that the auditor may like to provide. (e.g. BIFR company, delisting from SE)",null,null,null,null,null,null,null,null,null,null,null,"Any other detail that the auditor may like to provide. (e.g. BIFR company, delisting from SE,"]

{"sheet":"Sharecapital","index":3,"n_rows":8,"n_cols":35,"rows_kept":8,"cut":false,"hidden":false,"merged":[[6,5,6,13]]}
[null,null,null,null,null,null,null,null,0,null,null,null,null,null,null,null,null,null,null,null,null,null,null,null,null,"Amalgmation","Any Other","Buyback","Bonus","Conversion","Capital Reduction","ESOPs","Forfeitures","Preferential Issue","Rights"]
[null,null,null,null,null,null,"Reason for changes in share capital","Increase decrease in number of shares","Whether company has applied for listing","Name of the stock exchange","Whether intimated to CDSL","Whether intimated to NSDL","Names of stock exchanges where in principal approval is pending","Disclosure of note on certifying the details of changes in share capital during the quarter under consideration",null,null,null,null,null,null,null,null,null,null,null,"BSE Ltd","National Stock Exchange of India Ltd(NSE)","Metropolitan Stock Exchange of India Ltd(MSEI)","Calcutta Stock Exchange of India Ltd(CSE)"]
[null,null,null,null,null,null,null,null,null,null,null,null,null,null,null,null,null,null,null,null,null,null,null,null,null,"Applied","Not Applied","NA"]
[null,null,null,null,null,null,null,null,null,null,null,null,null,null,null,null,null,null,null,null,null,null,null,null,null,"Yes","No","NA"]
[]
[]
[null,null,null,null,null,"Certifying the details of changes in share capital during the quarter under consideration as per Table below :"]
[null,null,null,null,null,"Serial No.","Particulars","No.of shares","Applied / Not Applied for listing","Listed on Stock Exchanges (Specify Names)","whether intimated to CDSL","whether  intimated to NSDL","In-prin appr. pending for SE (Specify Names)","Remarks"]

{"sheet":"Taxonomy","index":4,"n_rows":160,"n_cols":5,"rows_kept":160,"cut":false,"hidden":true,"merged":[]}
["element","label","type","periodType","validation"]
["General Information"]
["ScripCode","Scrip code*","in-bse-aud-types:ScripCode","duration","1) This field is mandatory.\n2) Enter a valid Scrip code.\n3) Please enter 6 digit Scrip code."]
["Symbol","NSE Symbol*","xbrli:stringItemType","duration","1) This field is mandatory.\n2) Space is not allowed.\n3) Maximum 10 characters allowed."]
["MSEISymbol","MSEI Symbol*","xbrli:stringItemType","duration","1) This field is mandatory.\n2) Space is not allowed.\n3) Maximum 10 characters allowed."]
["ISIN","ISIN*","in-bse-aud-types:ISIN","duration","1) This field is mandatory.\n2) Please enter 12 digit ISIN number."]
["NameOfTheCompany","Name of the company*","xbrli:stringItemType","duration","This is a mandatory field. Please enter name of the entity."]
["RegisteredOfficeAddress","Registered office address*","xbrli:stringItemType","duration","This is a mandatory field. Please enter Registered office address"]
["RegisteredOfficeState","Registered office state*","xbrli:stringItemType","duration"]
["RegisteredOfficeCity","Registered office city*","xbrli:stringItemType","duration"]
["RegisteredOfficeDistrict","Registered office district*","xbrli:stringItemType","duration"]
["RegisteredOfficePinCode","Registered office pin code*","xbrli:nonNegativeIntegerItemType","duration"]
["RegisteredOfficeISDCode","Registered Office ISD Code","xbrli:stringItemType","duration"]
["RegisteredOfficeStdCode","Registered Office STD Code","xbrli:stringItemType","duration"]
["RegisteredOfficeContactNumber","Registered Office Contact Number","xbrli:stringItemType","duration"]
["RegisteredOfficeSTDCodeOfFaxNumber","Registered Office STD Code Of Fax Number","xbrli:stringItemType","duration"]
["RegisteredOfficeFaxNumber","Registered Office Fax Number","xbrli:stringItemType","duration"]
["RegisteredOfficeCountry","Registered office country*","xbrli:stringItemType","duration"]
["RegisteredOfficeWebsite","Registered office website*","xbrli:stringItemType","duration"]
["RegisteredOfficeEmail","Registered office email*","xbrli:stringItemType","duration"]
[null,"Same as above"]
["CorrespondenceAddress","Correspondence address*","xbrli:stringItemType","duration","This is a mandatory field. Please enter Correspondence address"]
["CorrespondenceState","Correspondence state","xbrli:stringItemType","duration"]
["CorrespondenceCity","Correspondence city","xbrli:stringItemType","duration","This is a mandatory field. Please enter in Correspondence of the City name"]
["CorrespondenceDistrict","Correspondence district","xbrli:stringItemType","duration"]
["CorrespondencePinCode","Correspondence pin code","xbrli:nonNegativeIntegerItemType","duration"]
["CorrespondenceISDCode","Correspondence ISD Code","xbrli:stringItemType","duration"]
["CorrespondenceSTDCode","Correspondence STD Code","xbrli:stringItemType","duration"]
["CorrespondenceContactNumber","Correspondence Contact Number","xbrli:stringItemType","duration"]
["CorrespondenceSTDCodeOfFaxNumber","Correspondence STD Code Of Fax Number","xbrli:stringItemType","duration"]
["CorrespondenceFaxNumber","Correspondence Fax Number","xbrli:stringItemType","duration"]
["CorrespondenceCountry","Correspondence country","xbrli:stringItemType","duration"]
["CorrespondenceEmail","Correspondence email","xbrli:stringItemType","duration"]
["DateOfQuarterEnded","Reporting quarter*","xbrli:dateItemType","instant","1) This is a mandatory field.\n2) Please enter Reporting quarter.\n3) Future date not allowed.\n4) Enter date in 'DD-MM-YYYY' format."]
["FaceValueOfTheShares","Face value*","num:perShareItemType","instant","This is a mandatory field. Please enter Face value"]
["Reco Format"]
["NameOfTheStockExchange","Name of stock exchanges where the company's securities are listed","in-bse-aud-types:StockExchange","duration","This is a mandatory field. Please select Drop-down list."]
["NumberOfSharesListed","Listed Capital","xbrli:sharesItemType","instant"]
["PercentageOfTotalIssuedCapital","% Of total issued capital","num:percentItemType","instant"]
["DisclosureOfNoteOnNamesOfTheStockExchangesWhereTheCompanySecuritiesAreListedTextBlock","Disclosure of note on names of the stock exchanges where the company's securities are listed","nonnum:textBlockItemType","duration"]
["NumberOfSharesIssued","Issued capital*","xbrli:sharesItemType","instant","This is a mandatory field. Issued capital must grater than or equal to listed capital"]
["NumberOfSharesHeldInDematerialisedFormInCDSL","Held in dematerialised form in CDSL*","xbrli:sharesItemType","instant","This is a mandatory field. Please enter Held in dematerialised form in CDSL (3)"]
["PercentageOfSharesHeldInDematerialisedFormInCDSLToNumberOfSharesIssued","PercentageOfSharesHeldInDematerialisedFormInCDSLToTotalNumberOfSharesIssued","num:percentItemType","instant"]
["NumberOfSharesHeldInDematerialisedFormInNSDL","Held in dematerialised form in NSDL*","xbrli:sharesItemType","instant","This is a mandatory field. Please enter Held in dematerialised form in NSDL (4)"]
["PercentageOfSharesHeldInDematerialisedFormInNSDLToNumberOfSharesIssued","PercentageOfSharesHeldInDematerialisedFormInNSDLToTotalNumberOfSharesIssued","num:percentItemType","instant"]
["NumberOfSharesHeldInPhysicalFormat","Physical*","xbrli:sharesItemType","instant","This is a mandatory field. Please enter Physical (5)"]
["PercentageOfSharesHeldInPhysicalFormatToNumberOfSharesIssued","PercentageOfSharesHeldInPhysicalFormatToTotalNumberOfSharesIssued","num:percentItemType","instant"]
["NumberOfShares","Total no.of shares*","xbrli:sharesItemType","instant","This is a mandatory field. Please enter Total no.of shares (3+4+5)"]
["TotalNumberOfSecurityHoldersAsOnEndOfTheQuarter","Total no. of Security holders as on end of the quarter*","xbrli:sharesItemType","instant"]
["PercentageOfTotalNumberOfSharesheldToNumberOfSharesIssued","Percentage as a total number of shares","num:percentItemType","instant"]
["DifferenceBetweenNumberOfSharesIssuedAndListed","Difference between number of shares issued and listed","xbrli:sharesItemType","duration","This is a mandatory field. Please enter Reasons for difference if any, Between issued capital and listed capital"]
["ReasonsForDifferenceBetweenNumberOfSharesIssuedAndListedTextBlock","Reasons for difference if any, Between issued capital and listed capital*","nonnum:textBlockItemType","duration"]
["DifferenceBetweenNumberOfSharesIssuedAndTotalNumberOfShares","Difference between number of shares issued and total number of shares","xbrli:sharesItemType","duration","This is a mandatory field. Please enter Reasons for difference if any, Between issued capital and total number of shares."]
["ReasonsForDifferenceBetweenNumberOfSharesIssuedAndTotalNumberOfSharesTextBlock","Reasons for difference if any, Between issued capital and total number of shares*","nonnum:textBlockItemType","duration"]
["DifferenceBetweenNumberOfSharesListedAndTotalNumberOfShares","Difference between number of shares listed and total number of shares","xbrli:sharesItemType","duration","This is mandatory field. Please enter Reasons for difference if any, Between listed capital and total number of shares"]
["ReasonsForDifferenceBetweenNumberOfSharesListedAndTotalNumberOfSharesTextBlock","Reasons for difference if any, Between listed capital and total number of shares*","nonnum:textBlockItemType","duration"]
["WhetherComapanyHasChangesInShareCapitalDuringTheQuarter","Whether changes during the quarter*","xbrli:booleanItemType","duration","This is a mandatory field. Please Select Drop-down list."]
["WhetherRegisterOfMembersIsUpdated","Register of members is updated*","xbrli:booleanItemType","instant","This is a mandatory field. Please Select Drop-down list."]
["UpdatedDateOfRegisterOfMembers","If not, Updated upto which date","xbrli:dateItemType","instant"]
["ReferenceOfPreviousQuarterWithRegardsToExcessDematerialisedShares","Reference of previous quarter with regards to excess dematerialised shares,If any.","xbrli:stringItemType","duration"]
["HasTheCompanyResolvedTheMatterOfExcessDematerialisedSharesInTheCurrentQuarter","Has the company resolved the matter (excess dematerialised shares mentioned above) in the current quarter ?*","xbrli:stringItemType","duration","This is a mandatory field. Please Select Drop-down list."]
["ReasonForNotResolvingTheMatterOfExcessDematerialisedSharesInTheCurrentQuarter","If not, Reason why ?","xbrli:stringItemType","duration"]
["DisclosureOfNoteOnOtherDetailsOfAuditorTextBlock","Other Details Auditor","nonnum:textBlockItemType","duration"]
["TotalNumberOfDematRequestsConfirmedAfter21Days","Total number of demat requests confirmed after 21 days","xbrli:nonNegativeIntegerItemType","duration"]
["TotalNumberOfSharesConfirmedAfter21Days","Total number of shares confirmed after 21 days","xbrli:nonNegativeIntegerItemType","duration"]
["ReasonForDelayForNonConfirmationOfDematRequestAfter21Days","Reason for delay for non confirmation of demat request after 21 days","xbrli:stringItemType","duration"]
["TotalNumberOfDematRequestsPendingAfter21Days","Total number of demat requests pending after 21 days","xbrli:nonNegativeIntegerItemType","duration"]
["TotalNumberOfSharesPendingAfter21Days","Total number of shares pending after 21 days","xbrli:nonNegativeIntegerItemType","duration"]
["ReasonForDelayForNonConfirmationOfDematRequestWithin21Days","Reason for delay for non confirmation of demat request within 21 days","xbrli:stringItemType","duration"]
["DisclosureOfNoteOnTotalNumberOfRequestsConfirmedAfter21DaysAndTheTotalNumberOfRequestsPendingBeyond21DaysTextBlock","Disclosure of note on total number of requests confirmed after 21 days and the total number of requests pending beyond 21 days","nonnum:textBlockItemType","duration"]
["NameOfTheComplianceOfficer","Name of the compliance officer","xbrli:stringItemType","duration","This is a mandatory field. Please enter Name of the compliance officer."]
["DesignationOfTheComplianceOfficer","Designation of the compliance officer","xbrli:stringItemType","duration"]
["MembershipNumberOfComplianceOfficer","Membership Number Of Compliance Officer*","xbrli:stringItemType","duration","This is a mandatory field."]
["STDCodeOfTheComplianceOfficer","STD Code Of The Compliance Officer","xbrli:stringItemType","duration"]
["ContactNumberOfTheComplianceOfficer","Contact Number Of The Compliance Officer","xbrli:stringItemType","duration"]
["STDCodeOfFaxNumberOfTheComplianceOfficer","STD Code Of Fax Number Of The Compliance Officer","xbrli:stringItemType","duration"]
["FaxNumberOfTheComplianceOfficer","Fax Number Of The Compliance Officer","xbrli:stringItemType","duration"]
["EMailIdOfTheComplianceOfficer","Name of the compliance officer E-mail id","xbrli:stringItemType","duration","This is a mandatory field. Please enter Name of the compliance officer E-mail id"]
["QualificationOfCertifyingAuditor","CA/CS","in-bse-aud-types:QualificationOfAuditor","duration","This is a mandatory field. Please enter name of  Company secretary or Charted accountant "]
["NameOfCertifyingAuditor","Name of certifying auditor","xbrli:stringItemType","duration","This is a mandatory field. Please enter Name of certifying auditor"]
["DateOfSigningOfCertifyingAuditor","Name of certifying auditor Date of issue of report","xbrli:dateItemType","instant","1) This is a mandatory field.\n2) Please enter certifying auditor Date of issue of report.\n3) Please enter date in 'DD-MM-YYYY' format.\n4) Date should not allow to enter future Date.\n5) Date of issue of report can not be less than the \"Reporting quarter*\" field in \"General Info\" sheet."]
["AddressOfCertifyingAuditor","Name of certifying auditor Address","xbrli:stringItemType","duration","This is a mandatory field. Please enter Name of certifying auditor Address"]
["CityOfCertifyingAuditor","Name of certifying auditor City","xbrli:stringItemType","duration"]
["PinCodeOfCertifyingAuditor","Name of certifying auditor Pincode","xbrli:nonNegativeIntegerItemType","duration"]
["STDCodeOfCertifyingAuditor","STD Code Of Certifying Auditor","xbrli:stringItemType","duration"]
["ContactNumberOfCertifyingAuditor","Contact Number Of Certifying Auditor","xbrli:stringItemType","duration"]
["STDCodeOfFaxNumberOfCertifyingAuditor","STD Code Of Fax Number Of Certifying Auditor","xbrli:stringItemType","duration"]
["FaxNumberOfCertifyingAuditor","Fax Number Of Certifying Auditor","xbrli:stringItemType","duration"]
["EmailOfCertifyingAuditor","Name of certifying auditor Email","xbrli:stringItemType","duration"]
["MembershipNumberOfCertifyingAuditor","Name of certifying auditor Membership no.","xbrli:stringItemType","duration","This is a mandatory field. Please enter Name of certifying auditor Membership no."]
["FirmRegistrationNumberOfCertifyingAuditor","Firms registration number of audit firm","xbrli:stringItemType","duration"]
["NameOfTheFirm","Name of the firm ","xbrli:stringItemType","duration"]
["COPNumberOfCertifyingAuditor","COP Number Of Certifying Auditor","xbrli:stringItemType","duration","1) This is a mandatory field.\n2) Only numeric value allowed.\n3) Maximum 7 digit numeric value allowed."]
["AppointmentOfCommonAgencyForShareRegistryWork","Appointment of common agency for share registry work","xbrli:stringItemType","duration","This is a mandatory field. Please enter Appointment of common agency for share registry work"]
["NameOfRTA","Name of RTA","xbrli:stringItemType","duration","This is a mandatory field, if \"Yes\" selected in \"Whether Registered with SEBI\"."]
["SEBIRegistrationNumber","Name of RTA SEBI registration no.","xbrli:stringItemType","duration","This is a mandatory field, if \"Yes\" selected in \"Appointment of common agency for share registry work*\" or \"Whether Registered with SEBI\"."]
["AddressOfRTA","Name of RTA Address","xbrli:stringItemType","duration","This is a mandatory field. Please enter Name of RTA Address."]
["StateOfRTA","Name of RTA State","xbrli:stringItemType","duration"]
["CityOfRTA","Name of RTA City","xbrli:stringItemType","duration"]
["PincodeOfRTA","Name of RTAPincode","xbrli:nonNegativeIntegerItemType","duration"]
["STDCodeOfRTA","STD Code Of RTA","xbrli:stringItemType","duration"]
["ContactNumberOfRTA","Contact Number Of RTA","xbrli:stringItemType","duration"]
["STDCodeOfFaxNumberOfRTA","STD Code Of Fax Number Of RTA","xbrli:stringItemType","duration"]
["FaxNumberOfRTA","Fax Number Of RTA","xbrli:stringItemType","duration"]
["EmailIdOfRTA","Name of RTA E-mail id*","xbrli:stringItemType","duration","This is a mandatory field. Please enter Name of RTA E-mail id."]
["WebsiteAdressOfRTA","Website Address*","xbrli:stringItemType","duration"]
["RemarksRelatingToRegisterAndShareTransferAgentExplanatoryTextBlock","Remarks relating to Register and Share Transfer Agent","nonnum:textBlockItemType","duration"]
["DisclosureOfNotesOnReconciliationOfShareCapitalAuditExplanatoryTextBlock","Any other detail that the auditor may like to provide. (e.g. BIFR company, delisting from SE,","nonnum:textBlockItemType","duration"]
["ReasonForEnteringTheSameMembershipNumber","Reason for entering the same membership Nos.","xbrli:stringItemType","duration"]
["Share Capital"]
["ReasonForChangesInShareCapital","Reason for changes in share capital","xbrli:stringItemType","duration","This is mandatory field. Please select Drop-down list."]
["IncreaseDecreaseInNumberOfShares","Increase decrease in number of shares","xbrli:sharesItemType","duration","This is mandatory field. Please enter No.of shares which allows greater then or equal to 0(Zero)."]
["WhetherCompanyHasAppliedForListing","Whether company has applied for listing","in-bse-aud-types:CompanyHasAppliedForListing","duration","This is mandatory field. Please Select Drop-down list."]
["NameOfTheStockExchange","Name of the stock exchange","in-bse-aud-types:StockExchange","duration","This is mandatory field. Please select Drop-down list."]
["WhetherIntimatedToCDSL","Whether intimated to CDSL","xbrli:booleanItemType","duration","This is mandatory field. Please select Drop-down list."]
["WhetherIntimatedToNSDL","Whether intimated to NSDL","xbrli:booleanItemType","duration","This is mandatory field. Please select Drop-down list."]
["NamesOfStockExchangesWhereInPrincipalApprovalIsPending","Names of stock exchanges where in principal approval is pending","xbrli:stringItemType","duration","This is mandatory field. Please enter In-prin appr. pending for SE (Specify Names)."]
["DisclosureOfNoteOnCertifyingTheDetailsOfChangesInShareCapitalDuringTheQuarterUnderConsiderationTextBlock","Disclosure of note on certifying the details of changes in share capital during the quarter under consideration","nonnum:textBlockItemType","duration"]
["WhetherQualifiedCompanySecretaryIsComplianceOfficer","Whether Qualified Company Secretary is Compliance Officer","xbrli:booleanItemType","duration","This is mandatory field. Please select Drop-down list."]
["DateOfAppointmentOfComplianceOfficer","Date of appointment of compliance officer*","xbrli:dateItemType","instant"]
["WhetherAnyChangeInComplianceOfficerDuringTheQuarter","Whether any change in Compliance Officer during the quarter ","xbrli:booleanItemType","duration","This is mandatory field. Please select Drop-down list."]
["WhetherThePreviousComplianceOfficerWasQualifiedCompanySecretary","Whether the previous Compliance Officer was Qualified Company Secretary ","xbrli:booleanItemType","duration","This is mandatory field. Please select Drop-down list."]
["NameOfPreviousComplianceOfficer","Previous Compliance Officer Name","xbrli:stringItemType","duration"]
["MembershipNumberOfPreviousComplianceOfficer","Membership Nos","xbrli:stringItemType","duration","This is a mandatory field."]
["DateOfAppointmentOfPreviousComplianceOfficer","Date of appointment of previous compliance officer","xbrli:dateItemType","instant","1) This is a mandatory field.\n2) Future date not allowed.\n3) Enter date in 'DD-MM-YYYY' format.\n4) Enter a valid Date.\n5) 'Date of appointment' of previous compliance officer should not be greater than the 'Date of appointment' of current compliance officer."]
["DateOfCessationOfPreviousComplianceOfficer","Date of cessation of previous compliance officer","xbrli:dateItemType","instant","1) This is a mandatory field.\n2) Today date and Future date are not allowed.\n3) \"Date of Cessation\" of previous compliance officer should be greater than or equal to the \"Date of appointment\" of previous compliance officer.\"\n4) Date of Cessation of previous compliance officer can not be greater than the \"Date of Appointment\" of compliance officer.\n5) Enter date in 'DD-MM-YYYY' format.\n6) Enter a valid Date."]
["WhetherAnyChangeInRegistrarAndShareTransferAgents","Whether any change in Registrar and Share Transfer Agents","xbrli:booleanItemType","duration","This is mandatory field. Please select Drop-down list."]
["NameOfPreviousRegistrarAndShareTransferAgents","Previous Registrar and Share Transfer Agents Name","xbrli:stringItemType","duration","This is a mandatory field, if \"Yes\" selected in \"Whether any change in Registrar and Share Transfer Agents\" field."]
["DateOfCessationPreviousRegistrarAndShareTransferAgents","Date of cessation previous registrar and share transfer agents","xbrli:dateItemType","instant","1) This is a mandatory field, if \"Yes\" selected in \"Whether any change in Registrar and Share Transfer Agents\" field.\n2) Enter date in 'DD-MM-YYYY' format.\n3) Enter a valid Date."]
["PrefixOfMembershipNumberOfComplianceOfficer","Prefix of Membership Number Of Compliance Officer","xbrli:stringItemType","duration"]
["WhetherComplianceOfficerAppointed","Whether Compliance officer appointed","xbrli:booleanItemType","duration"]
["WhetherRegisteredwithSEBI","Whether Registered with SEBI","in-bse-aud-types:RegisteredwithSEBI","duration"]
["WhetherCompanyHasCIN","Whether company has CIN","xbrli:booleanItemType","duration","This is mandatory field. Please select Drop-down list."]
["CorporateIdentityNumber","CIN Number","in-bse-aud-types:CINNumber","duration","This is mandatory field in case \"Whether Company has CIN\" value is \"Yes\"."]
["PANOfComplianceOfficer","PAN of the compliance officer*","in-bse-aud-types:PermanentAccountNumber","duration","This is mandatory field. Enter valid Pan Number, Pan Number format must be [A-Z][A-Z][A-Z][A-Z][A-Z][0-9][0-9][0-9][0-9][A-Z]."]
["PANOfPreviousComplianceOfficer","PAN of the previous compliance officer*","in-bse-aud-types:PermanentAccountNumber","duration","This is mandatory field. Enter valid Pan Number, Pan Number format must be [A-Z][A-Z][A-Z][A-Z][A-Z][0-9][0-9][0-9][0-9][A-Z]."]
[]
[]
[null,"E-mail id of the compliance officer",null,null,"This is a mandatory field. Please enter Name of the compliance officer E-mail id"]
[null,"CA/CS/CMA*",null,null,"This is a mandatory field. Please enter name of  Company secretary or Charted accountant "]
[null,"Name of certifying auditor",null,null,"This is a mandatory field. Please enter Name of certifying auditor"]
[null,"Date of signing of certifying auditor",null,null,"1) This is a mandatory field.\n2) Please enter certifying auditor Date of issue of report.\n3) Please enter date in 'DD-MM-YYYY' format.\n4) Date should not allow to enter future Date.\n5) Date of issue of report can not be less than the \"Reporting quarter*\" field in \"General Info\" sheet."]
[null,"Address of certifying auditor",null,null,"This is a mandatory field. Please enter Name of certifying auditor Address"]
[null,"City of certifying auditor"]
[null,"Pin code of certifying auditor"]
[null,"Contact number of certifying auditor"]
[null,"Fax number of certifying auditor"]
[null,"Email of certifying auditor"]
[null,"Membership number of certifying auditor",null,null,"This is a mandatory field. Please enter Name of certifying auditor Membership no."]
[null,"Name of the firm"]
[null,"COP number of certifying auditor",null,null,"1) This is a mandatory field.\n2) Only numeric value allowed."]
[null,"SEBI registration number",null,null,"This is a mandatory field, if \"Yes\" selected in \"Appointment of common agency for share registry work*\" or \"Whether Registered with SEBI\"."]
[null,"Address of RTA",null,null,"This is a mandatory field. Please enter Name of RTA Address."]
[null,"City of RTA"]
[null,"Pincode of RTA"]
[null,"State of RTA"]
[null,"Contact number of RTA"]
[null,"Email id of RTA",null,null,"This is a mandatory field. Please enter Name of RTA E-mail id."]
[null,"Website adress of RTA"]
[null,"Name of previous registrar and share transfer agents"]

{"sheet":"TextBlock","index":5,"n_rows":0,"n_cols":0,"rows_kept":0,"cut":false,"hidden":true,"merged":[]}